[Event "Titled Tuesday Blitz August 17 2021"]
[White "Shkapenko, Pavel"]
[Black "Maevsky, Nikolay"]
[WhiteFideId "4151933"]
[BlackFideId "4198220"]
[WhiteElo "2386"]
[BlackElo "2213"]
[Result "1-0"]
[Round "11"]
[TimeControl "180+1"]
[Date "2021.08.17"]
[WhiteClock "0:00:06"]
[BlackClock "0:00:01"]

1. e4 {[%clk 0:02:52]}  g6 {[%clk 0:03:00]} 2. d4 {[%clk 0:02:52]}  Bg7 {[%clk 0:03:00]} 3. Nc3 {[%clk 0:02:52]}  d6 {[%clk 0:03:00]} 4. h3 {[%clk 0:02:52]}  a6 {[%clk 0:02:57]} 5. a4 {[%clk 0:02:52]}  Nf6 {[%clk 0:02:50]} 6. g4 {[%clk 0:02:52]}  c5 {[%clk 0:02:45]} 7. dxc5 {[%clk 0:02:51]}  Qa5 {[%clk 0:02:44]} 8. Bg2 {[%clk 0:02:51]}  Qxc5 {[%clk 0:02:44]} 9. Nge2 {[%clk 0:02:52]}  O-O {[%clk 0:02:42]} 10. O-O {[%clk 0:02:52]}  Nc6 {[%clk 0:02:41]} 11. Be3 {[%clk 0:02:47]}  Qa5 {[%clk 0:02:41]} 12. f4 {[%clk 0:02:38]}  Qb4 {[%clk 0:02:19]} 13. Ra3 {[%clk 0:02:33]}  Na5 {[%clk 0:02:14]} 14. Bc1 {[%clk 0:02:29]}  Nc4 {[%clk 0:02:10]} 15. Rb3 {[%clk 0:02:29]}  Qc5+ {[%clk 0:02:09]} 16. Kh1 {[%clk 0:02:27]}  Bxg4 {[%clk 0:02:04]} 17. hxg4 {[%clk 0:02:17]}  Nxg4 {[%clk 0:02:04]} 18. Qd5 {[%clk 0:02:13]}  Nge3 {[%clk 0:01:31]} 19. Qxc5 {[%clk 0:02:04]}  dxc5 {[%clk 0:01:31]} 20. Bxe3 {[%clk 0:01:56]}  Nxe3 {[%clk 0:01:31]} 21. Rf3 {[%clk 0:01:57]}  Nxc2 {[%clk 0:01:30]} 22. Rxb7 {[%clk 0:01:56]}  Rab8 {[%clk 0:01:30]} 23. Rxb8 {[%clk 0:01:55]}  Rxb8 {[%clk 0:01:30]} 24. Nd1 {[%clk 0:01:19]}  Bxb2 {[%clk 0:01:29]} 25. Nxb2 {[%clk 0:01:18]}  Rxb2 {[%clk 0:01:29]} 26. Rc3 {[%clk 0:01:10]}  Ne1 {[%clk 0:01:26]} 27. Bf1 {[%clk 0:01:07]}  Rb4 {[%clk 0:01:23]} 28. e5 {[%clk 0:01:04]}  Rxa4 {[%clk 0:01:18]} 29. Kg1 {[%clk 0:01:03]}  c4 {[%clk 0:01:13]} 30. Nd4 {[%clk 0:00:52]}  Nd3 {[%clk 0:00:48]} 31. Bxd3 {[%clk 0:00:51]}  cxd3 {[%clk 0:00:48]} 32. Rxd3 {[%clk 0:00:51]}  Kg7 {[%clk 0:00:44]} 33. Kf2 {[%clk 0:00:52]}  e6 {[%clk 0:00:42]} 34. Kf3 {[%clk 0:00:51]}  h6 {[%clk 0:00:35]} 35. Nc6 {[%clk 0:00:51]}  g5 {[%clk 0:00:31]} 36. fxg5 {[%clk 0:00:47]}  hxg5 {[%clk 0:00:32]} 37. Rd6 {[%clk 0:00:43]}  a5 {[%clk 0:00:26]} 38. Rd7 {[%clk 0:00:42]}  Rf4+ {[%clk 0:00:26]} 39. Ke3 {[%clk 0:00:42]}  a4 {[%clk 0:00:26]} 40. Ra7 {[%clk 0:00:36]}  Kg6 {[%clk 0:00:25]} 41. Nd4 {[%clk 0:00:36]}  Rh4 {[%clk 0:00:15]} 42. Rxa4 {[%clk 0:00:36]}  f6 {[%clk 0:00:15]} 43. Ra6 {[%clk 0:00:34]}  fxe5 {[%clk 0:00:12]} 44. Rxe6+ {[%clk 0:00:34]}  Kf7 {[%clk 0:00:12]} 45. Rxe5 {[%clk 0:00:34]}  Kf6 {[%clk 0:00:11]} 46. Re6+ {[%clk 0:00:34]}  Kf7 {[%clk 0:00:10]} 47. Rd6 {[%clk 0:00:34]}  Rf4 {[%clk 0:00:09]} 48. Nf3 {[%clk 0:00:32]}  Rf5 {[%clk 0:00:07]} 49. Ke4 {[%clk 0:00:33]}  Rf4+ {[%clk 0:00:07]} 50. Ke3 {[%clk 0:00:33]}  Rf5 {[%clk 0:00:08]} 51. Rb6 {[%clk 0:00:32]}  Kg7 {[%clk 0:00:07]} 52. Nd4 {[%clk 0:00:32]}  Re5+ {[%clk 0:00:06]} 53. Kf3 {[%clk 0:00:32]}  Kf7 {[%clk 0:00:06]} 54. Kg3 {[%clk 0:00:31]}  Rd5 {[%clk 0:00:05]} 55. Nf3 {[%clk 0:00:31]}  Rf5 {[%clk 0:00:04]} 56. Rc6 {[%clk 0:00:26]}  Kg7 {[%clk 0:00:03]} 57. Rc3 {[%clk 0:00:24]}  Kg6 {[%clk 0:00:02]} 58. Rc6+ {[%clk 0:00:24]}  Kg7 {[%clk 0:00:03]} 59. Re6 {[%clk 0:00:24]}  Kf7 {[%clk 0:00:03]} 60. Ra6 {[%clk 0:00:23]}  Kg7 {[%clk 0:00:03]} 61. Ne1 {[%clk 0:00:22]}  Kf7 {[%clk 0:00:03]} 62. Ng2 {[%clk 0:00:22]}  Rd5 {[%clk 0:00:02]} 63. Ne3 {[%clk 0:00:22]}  Re5 {[%clk 0:00:02]} 64. Ng4 {[%clk 0:00:22]}  Rb5 {[%clk 0:00:01]} 65. Kf3 {[%clk 0:00:19]}  Kg7 {[%clk 0:00:02]} 66. Ne3 {[%clk 0:00:19]}  Rb3 {[%clk 0:00:02]} 67. Ke4 {[%clk 0:00:18]}  Kf7 {[%clk 0:00:02]} 68. Ng4 {[%clk 0:00:17]}  Rb4+ {[%clk 0:00:02]} 69. Kf5 {[%clk 0:00:17]}  Rb5+ {[%clk 0:00:02]} 70. Ne5+ {[%clk 0:00:17]}  Ke7 {[%clk 0:00:02]} 71. Re6+ {[%clk 0:00:16]}  Kd8 {[%clk 0:00:02]} 72. Kxg5 {[%clk 0:00:16]}  Kc7 {[%clk 0:00:02]} 73. Kf5 {[%clk 0:00:16]}  Rb6 {[%clk 0:00:03]} 74. Re7+ {[%clk 0:00:15]}  Kd8 {[%clk 0:00:02]} 75. Rf7 {[%clk 0:00:15]}  Kc8 {[%clk 0:00:03]} 76. Ke4 {[%clk 0:00:14]}  Rd6 {[%clk 0:00:02]} 77. Nc4 {[%clk 0:00:13]}  Rd7 {[%clk 0:00:03]} 78. Rf6 {[%clk 0:00:13]}  Re7+ {[%clk 0:00:02]} 79. Kd5 {[%clk 0:00:13]}  Kc7 {[%clk 0:00:02]} 80. Ne5 {[%clk 0:00:12]}  Rh7 {[%clk 0:00:02]} 81. Ra6 {[%clk 0:00:12]}  Kb7 {[%clk 0:00:02]} 82. Ra4 {[%clk 0:00:12]}  Rh5 {[%clk 0:00:02]} 83. Rb4+ {[%clk 0:00:10]}  Kc7 {[%clk 0:00:02]} 84. Rc4+ {[%clk 0:00:09]}  Kb7 {[%clk 0:00:02]} 85. Rc5 {[%clk 0:00:10]}  Ka7 {[%clk 0:00:03]} 86. Kc4 {[%clk 0:00:09]}  Rh4+ {[%clk 0:00:02]} 87. Kb5 {[%clk 0:00:09]}  Rh6 {[%clk 0:00:02]} 88. Rc7+ {[%clk 0:00:08]}  Kb8 {[%clk 0:00:03]} 89. Re7 {[%clk 0:00:08]}  Rh5 {[%clk 0:00:03]} 90. Kb6 {[%clk 0:00:08]}  Kc8 {[%clk 0:00:02]} 91. Nc6 {[%clk 0:00:06]}  Rh8 {[%clk 0:00:01]} 92. Rc7# {[%clk 0:00:06]} 1-0


[Site "https://www.chess.com"]

[Event "Titled Tuesday Blitz August 17 2021"]
[White "Sokolin, Leonid"]
[Black "Shahade, Gregory"]
[WhiteFideId "2009161"]
[BlackFideId "2009064"]
[WhiteElo "2394"]
[BlackElo "2685"]
[Result "0-1"]
[Round "11"]
[TimeControl "180+1"]
[Date "2021.08.17"]
[WhiteClock "0:00:11"]
[BlackClock "0:00:09"]

1. e4 {[%clk 0:01:49]}  e5 {[%clk 0:02:56]} 2. Nf3 {[%clk 0:01:50]}  Nc6 {[%clk 0:02:56]} 3. Bc4 {[%clk 0:01:50]}  Nf6 {[%clk 0:02:56]} 4. d4 {[%clk 0:01:50]}  exd4 {[%clk 0:02:55]} 5. e5 {[%clk 0:01:50]}  Ne4 {[%clk 0:02:54]} 6. Bb5 {[%clk 0:01:50]}  Be7 {[%clk 0:02:41]} 7. O-O {[%clk 0:01:46]}  O-O {[%clk 0:02:39]} 8. c3 {[%clk 0:01:37]}  dxc3 {[%clk 0:02:37]} 9. Qd5 {[%clk 0:01:36]}  Nc5 {[%clk 0:02:20]} 10. Nxc3 {[%clk 0:01:35]}  d6 {[%clk 0:02:20]} 11. exd6 {[%clk 0:01:30]}  Bxd6 {[%clk 0:02:18]} 12. Qh5 {[%clk 0:01:29]}  g6 {[%clk 0:02:15]} 13. Qh6 {[%clk 0:01:29]}  Qf6 {[%clk 0:01:44]} 14. Bg5 {[%clk 0:01:28]}  Qg7 {[%clk 0:01:35]} 15. Qh4 {[%clk 0:01:28]}  h5 {[%clk 0:01:16]} 16. Nd5 {[%clk 0:01:14]}  Bg4 {[%clk 0:00:57]} 17. Nf6+ {[%clk 0:01:13]}  Kh8 {[%clk 0:00:43]} 18. Nxg4 {[%clk 0:01:13]}  Kg8 {[%clk 0:00:29]} 19. Nf6+ {[%clk 0:01:02]}  Kh8 {[%clk 0:00:29]} 20. Nxh5 {[%clk 0:01:01]}  Qh7 {[%clk 0:00:26]} 21. Nf6 {[%clk 0:00:59]}  Qxh4 {[%clk 0:00:25]} 22. Bxh4 {[%clk 0:00:59]}  Ne7 {[%clk 0:00:18]} 23. Bg3 {[%clk 0:00:52]}  Nf5 {[%clk 0:00:16]} 24. Bxd6 {[%clk 0:00:49]}  Nxd6 {[%clk 0:00:17]} 25. Be2 {[%clk 0:00:46]}  Kg7 {[%clk 0:00:17]} 26. Nd5 {[%clk 0:00:46]}  c6 {[%clk 0:00:18]} 27. Nc3 {[%clk 0:00:46]}  Rfe8 {[%clk 0:00:18]} 28. Rfd1 {[%clk 0:00:45]}  Nf5 {[%clk 0:00:17]} 29. Rd2 {[%clk 0:00:44]}  b5 {[%clk 0:00:16]} 30. g4 {[%clk 0:00:40]}  Ne7 {[%clk 0:00:12]} 31. Rc1 {[%clk 0:00:36]}  Ne6 {[%clk 0:00:10]} 32. Nd4 {[%clk 0:00:31]}  Nf4 {[%clk 0:00:10]} 33. Bf1 {[%clk 0:00:31]}  b4 {[%clk 0:00:09]} 34. Ne4 {[%clk 0:00:30]}  Ned5 {[%clk 0:00:09]} 35. Nd6 {[%clk 0:00:22]}  Red8 {[%clk 0:00:08]} 36. Rxc6 {[%clk 0:00:20]}  a5 {[%clk 0:00:09]} 37. Ne4 {[%clk 0:00:18]}  Ne7 {[%clk 0:00:08]} 38. Rc7 {[%clk 0:00:17]}  Nfd5 {[%clk 0:00:08]} 39. Rb7 {[%clk 0:00:17]}  Rac8 {[%clk 0:00:07]} 40. g5 {[%clk 0:00:17]}  Rc1 {[%clk 0:00:06]} 41. h4 {[%clk 0:00:15]}  Rh8 {[%clk 0:00:07]} 42. Nf6 {[%clk 0:00:15]}  Nxf6 {[%clk 0:00:06]} 43. gxf6+ {[%clk 0:00:15]}  Kxf6 {[%clk 0:00:07]} 44. Nf3 {[%clk 0:00:14]}  Nf5 {[%clk 0:00:07]} 45. Rb6+ {[%clk 0:00:14]}  Kg7 {[%clk 0:00:07]} 46. Rd7 {[%clk 0:00:13]}  Nxh4 {[%clk 0:00:07]} 47. Nxh4 {[%clk 0:00:13]}  Rxh4 {[%clk 0:00:07]} 48. Rd3 {[%clk 0:00:13]}  Rg4+ {[%clk 0:00:07]} 49. Rg3 {[%clk 0:00:13]}  Rd4 {[%clk 0:00:08]} 50. b3 {[%clk 0:00:13]}  Rdd1 {[%clk 0:00:08]} 51. Kg2 {[%clk 0:00:12]}  Rxf1 {[%clk 0:00:08]} 52. Re3 {[%clk 0:00:11]}  Rg1+ {[%clk 0:00:08]} 53. Kf3 {[%clk 0:00:12]}  Rh1 {[%clk 0:00:08]} 54. Rb7 {[%clk 0:00:12]}  Rh3+ {[%clk 0:00:08]} 55. Ke4 {[%clk 0:00:12]}  Rxe3+ {[%clk 0:00:09]} 56. fxe3 {[%clk 0:00:12]}  Rc2 {[%clk 0:00:09]} 57. Ra7 {[%clk 0:00:11]}  Rxa2 {[%clk 0:00:10]} 58. Kd5 {[%clk 0:00:11]}  Re2 {[%clk 0:00:09]} 0-1


[Site "https://www.chess.com"]

[Event "Titled Tuesday Blitz August 17 2021"]
[White "Sonis, Francesco"]
[Black "Rakhmanov, Aleksandr"]
[WhiteFideId "895733"]
[BlackFideId "4173708"]
[WhiteElo "2373"]
[BlackElo "2498"]
[Result "0-1"]
[Round "11"]
[TimeControl "180+1"]
[Date "2021.08.17"]
[WhiteClock "0:00:33"]
[BlackClock "0:00:21"]

1. Nf3 {[%clk 0:03:00]}  Nf6 {[%clk 0:02:57]} 2. c4 {[%clk 0:03:00]}  e6 {[%clk 0:02:54]} 3. g3 {[%clk 0:03:00]}  a6 {[%clk 0:02:54]} 4. Bg2 {[%clk 0:02:56]}  b5 {[%clk 0:02:55]} 5. b3 {[%clk 0:02:55]}  Bb7 {[%clk 0:02:54]} 6. Nc3 {[%clk 0:02:55]}  b4 {[%clk 0:02:52]} 7. Na4 {[%clk 0:02:55]}  d6 {[%clk 0:02:49]} 8. O-O {[%clk 0:02:54]}  Nbd7 {[%clk 0:02:50]} 9. a3 {[%clk 0:02:54]}  a5 {[%clk 0:02:49]} 10. Bb2 {[%clk 0:02:52]}  Be7 {[%clk 0:02:49]} 11. d3 {[%clk 0:02:51]}  O-O {[%clk 0:02:49]} 12. e4 {[%clk 0:02:48]}  e5 {[%clk 0:02:48]} 13. Re1 {[%clk 0:02:46]}  c5 {[%clk 0:02:47]} 14. h3 {[%clk 0:02:42]}  Ne8 {[%clk 0:02:44]} 15. Nd2 {[%clk 0:02:39]}  Nc7 {[%clk 0:02:45]} 16. Nf1 {[%clk 0:02:39]}  f5 {[%clk 0:02:39]} 17. exf5 {[%clk 0:02:34]}  Bxg2 {[%clk 0:02:40]} 18. Kxg2 {[%clk 0:02:35]}  Rxf5 {[%clk 0:02:39]} 19. Ne3 {[%clk 0:02:36]}  Rf7 {[%clk 0:02:38]} 20. axb4 {[%clk 0:02:35]}  axb4 {[%clk 0:02:37]} 21. Qg4 {[%clk 0:02:35]}  g6 {[%clk 0:02:24]} 22. h4 {[%clk 0:02:33]}  Nf6 {[%clk 0:02:22]} 23. Qe2 {[%clk 0:02:33]}  Rb8 {[%clk 0:02:16]} 24. Nf1 {[%clk 0:02:30]}  Qc8 {[%clk 0:02:14]} 25. Nd2 {[%clk 0:02:29]}  Qb7+ {[%clk 0:02:14]} 26. Qf3 {[%clk 0:02:28]}  Qxf3+ {[%clk 0:02:07]} 27. Nxf3 {[%clk 0:02:27]}  Ng4 {[%clk 0:02:08]} 28. Re4 {[%clk 0:01:57]}  Rbf8 {[%clk 0:01:49]} 29. Rxg4 {[%clk 0:01:52]}  Rxf3 {[%clk 0:01:49]} 30. Rf1 {[%clk 0:01:52]}  Rxd3 {[%clk 0:01:50]} 31. h5 {[%clk 0:01:52]}  Rxb3 {[%clk 0:01:47]} 32. hxg6 {[%clk 0:01:51]}  h5 {[%clk 0:01:48]} 33. Re4 {[%clk 0:01:50]}  Bf6 {[%clk 0:01:34]} 34. Bc1 {[%clk 0:01:49]}  Ne6 {[%clk 0:01:29]} 35. Rh1 {[%clk 0:01:47]}  Ra8 {[%clk 0:01:23]} 36. Nb6 {[%clk 0:01:47]}  Ra1 {[%clk 0:01:23]} 37. Nd5 {[%clk 0:01:45]}  Bg5 {[%clk 0:01:12]} 38. f4 {[%clk 0:01:32]}  Ra2+ {[%clk 0:01:12]} 39. Kh3 {[%clk 0:01:23]}  Bxf4 {[%clk 0:00:55]} 40. Bxf4 {[%clk 0:01:20]}  Nxf4+ {[%clk 0:00:56]} 41. Nxf4 {[%clk 0:01:19]}  exf4 {[%clk 0:00:56]} 42. Rxf4 {[%clk 0:01:19]}  Raa3 {[%clk 0:00:49]} 43. Re1 {[%clk 0:01:02]}  Rxg3+ {[%clk 0:00:49]} 44. Kh4 {[%clk 0:01:03]}  Rxg6 {[%clk 0:00:43]} 45. Kxh5 {[%clk 0:01:02]}  Rg7 {[%clk 0:00:33]} 46. Kh4 {[%clk 0:01:00]}  Ra2 {[%clk 0:00:25]} 47. Kh3 {[%clk 0:00:49]}  Ra3+ {[%clk 0:00:20]} 48. Kh4 {[%clk 0:00:48]}  Rag3 {[%clk 0:00:20]} 49. Re8+ {[%clk 0:00:39]}  Kh7 {[%clk 0:00:20]} 50. Rf5 {[%clk 0:00:39]}  R3g4+ {[%clk 0:00:19]} 51. Kh3 {[%clk 0:00:38]}  Rxc4 {[%clk 0:00:18]} 52. Rh5+ {[%clk 0:00:32]}  Kg6 {[%clk 0:00:18]} 53. Rd5 {[%clk 0:00:32]}  Rd4 {[%clk 0:00:18]} 54. Rxd4 {[%clk 0:00:29]}  cxd4 {[%clk 0:00:19]} 55. Re6+ {[%clk 0:00:30]}  Kf5 {[%clk 0:00:19]} 56. Rxd6 {[%clk 0:00:31]}  Ke4 {[%clk 0:00:19]} 57. Rb6 {[%clk 0:00:32]}  d3 {[%clk 0:00:18]} 58. Rxb4+ {[%clk 0:00:33]}  Ke3 {[%clk 0:00:19]} 59. Rb8 {[%clk 0:00:33]}  d2 {[%clk 0:00:19]} 60. Re8+ {[%clk 0:00:33]}  Kf2 {[%clk 0:00:20]} 61. Rf8+ {[%clk 0:00:33]}  Ke1 {[%clk 0:00:20]} 62. Re8+ {[%clk 0:00:33]}  Kd1 {[%clk 0:00:21]} 63. Rd8 {[%clk 0:00:34]}  Rg5 {[%clk 0:00:20]} 64. Kh4 {[%clk 0:00:33]}  Rc5 {[%clk 0:00:20]} 65. Kg3 {[%clk 0:00:33]}  Kc2 {[%clk 0:00:21]} 0-1


[Site "https://www.chess.com"]

[Event "Titled Tuesday Blitz August 17 2021"]
[White "Stribuk, Artiom"]
[Black "Mirzoev, Azer"]
[WhiteFideId "13515659"]
[BlackFideId "13400304"]
[WhiteElo "2224"]
[BlackElo "2525"]
[Result "0-1"]
[Round "11"]
[TimeControl "180+1"]
[Date "2021.08.17"]
[WhiteClock "0:00:18"]
[BlackClock "0:01:24"]

1. d4 {[%clk 0:03:00]}  d5 {[%clk 0:02:59]} 2. c4 {[%clk 0:02:55]}  c6 {[%clk 0:03:00]} 3. Nf3 {[%clk 0:02:55]}  Nf6 {[%clk 0:03:00]} 4. e3 {[%clk 0:02:54]}  Bf5 {[%clk 0:02:59]} 5. Nc3 {[%clk 0:02:54]}  e6 {[%clk 0:02:59]} 6. Nh4 {[%clk 0:02:54]}  Be4 {[%clk 0:02:59]} 7. f3 {[%clk 0:02:54]}  Bg6 {[%clk 0:02:59]} 8. Qb3 {[%clk 0:02:52]}  Qc7 {[%clk 0:02:59]} 9. Nxg6 {[%clk 0:02:47]}  hxg6 {[%clk 0:02:59]} 10. cxd5 {[%clk 0:02:48]}  exd5 {[%clk 0:02:57]} 11. Bd2 {[%clk 0:02:28]}  Nbd7 {[%clk 0:02:56]} 12. O-O-O {[%clk 0:02:27]}  Nb6 {[%clk 0:02:54]} 13. Kb1 {[%clk 0:02:23]}  Rxh2 {[%clk 0:02:50]} 14. Rxh2 {[%clk 0:02:21]}  Qxh2 {[%clk 0:02:49]} 15. e4 {[%clk 0:02:17]}  Qc7 {[%clk 0:02:43]} 16. e5 {[%clk 0:02:13]}  Nfd7 {[%clk 0:02:43]} 17. Bd3 {[%clk 0:02:13]}  O-O-O {[%clk 0:02:41]} 18. f4 {[%clk 0:01:48]}  Kb8 {[%clk 0:02:35]} 19. Rc1 {[%clk 0:01:43]}  Nc4 {[%clk 0:02:28]} 20. Bxc4 {[%clk 0:01:32]}  dxc4 {[%clk 0:02:29]} 21. Qxc4 {[%clk 0:01:33]}  Nb6 {[%clk 0:02:29]} 22. Qd3 {[%clk 0:01:33]}  Qd7 {[%clk 0:02:29]} 23. Be3 {[%clk 0:01:25]}  Be7 {[%clk 0:02:27]} 24. Rh1 {[%clk 0:01:19]}  c5 {[%clk 0:02:10]} 25. d5 {[%clk 0:01:02]}  Nxd5 {[%clk 0:01:48]} 26. Nxd5 {[%clk 0:00:58]}  Qxd5 {[%clk 0:01:49]} 27. Qxd5 {[%clk 0:00:59]}  Rxd5 {[%clk 0:01:49]} 28. Rh7 {[%clk 0:00:59]}  Rd3 {[%clk 0:01:49]} 29. Bc1 {[%clk 0:00:58]}  Bf8 {[%clk 0:01:39]} 30. Rh8 {[%clk 0:00:56]}  Rd8 {[%clk 0:01:39]} 31. Rg8 {[%clk 0:00:50]}  Kc7 {[%clk 0:01:39]} 32. g4 {[%clk 0:00:42]}  Kd7 {[%clk 0:01:32]} 33. f5 {[%clk 0:00:40]}  gxf5 {[%clk 0:01:31]} 34. gxf5 {[%clk 0:00:40]}  c4 {[%clk 0:01:29]} 35. Be3 {[%clk 0:00:33]}  a6 {[%clk 0:01:25]} 36. Kc2 {[%clk 0:00:24]}  b5 {[%clk 0:01:24]} 37. Kc3 {[%clk 0:00:18]}  Bb4+ {[%clk 0:01:24]} 0-1


[Site "https://www.chess.com"]

[Event "Titled Tuesday Blitz August 17 2021"]
[White "Tari, Aryan"]
[Black "Garv Gaur"]
[WhiteFideId "1510045"]
[BlackFideId "45030839"]
[WhiteElo "2656"]
[BlackElo "1950"]
[Result "1-0"]
[Round "11"]
[TimeControl "180+1"]
[Date "2021.08.17"]
[WhiteClock "0:01:43"]
[BlackClock "0:00:13"]

1. c4 {[%clk 0:03:00]}  e6 {[%clk 0:02:59]} 2. g3 {[%clk 0:03:00]}  d5 {[%clk 0:02:59]} 3. Bg2 {[%clk 0:03:00]}  Nf6 {[%clk 0:02:59]} 4. Nf3 {[%clk 0:02:59]}  Be7 {[%clk 0:02:59]} 5. O-O {[%clk 0:02:58]}  O-O {[%clk 0:02:59]} 6. b3 {[%clk 0:02:57]}  b6 {[%clk 0:02:59]} 7. Bb2 {[%clk 0:02:56]}  Bb7 {[%clk 0:02:59]} 8. e3 {[%clk 0:02:52]}  c5 {[%clk 0:02:59]} 9. cxd5 {[%clk 0:02:48]}  exd5 {[%clk 0:02:59]} 10. d4 {[%clk 0:02:48]}  Nc6 {[%clk 0:02:53]} 11. Nc3 {[%clk 0:02:48]}  cxd4 {[%clk 0:02:51]} 12. Nxd4 {[%clk 0:02:45]}  Rc8 {[%clk 0:02:33]} 13. Nf5 {[%clk 0:02:39]}  g6 {[%clk 0:02:16]} 14. Nh6+ {[%clk 0:02:23]}  Kg7 {[%clk 0:02:16]} 15. Ng4 {[%clk 0:02:14]}  Nxg4 {[%clk 0:02:15]} 16. Qxg4 {[%clk 0:02:15]}  Bf6 {[%clk 0:02:00]} 17. Rad1 {[%clk 0:02:14]}  Ne5 {[%clk 0:01:55]} 18. Qe2 {[%clk 0:02:07]}  Qe7 {[%clk 0:01:29]} 19. Nxd5 {[%clk 0:02:04]}  Bxd5 {[%clk 0:01:29]} 20. Rxd5 {[%clk 0:02:05]}  Rfd8 {[%clk 0:01:29]} 21. Rfd1 {[%clk 0:02:02]}  Rxd5 {[%clk 0:01:27]} 22. Rxd5 {[%clk 0:02:03]}  Rc5 {[%clk 0:01:27]} 23. Ba3 {[%clk 0:02:00]}  Qc7 {[%clk 0:00:53]} 24. Bxc5 {[%clk 0:02:00]}  bxc5 {[%clk 0:00:54]} 25. Qb5 {[%clk 0:01:51]}  c4 {[%clk 0:00:53]} 26. bxc4 {[%clk 0:01:51]}  Ng4 {[%clk 0:00:44]} 27. Rd7 {[%clk 0:01:47]}  Qc8 {[%clk 0:00:34]} 28. Bd5 {[%clk 0:01:46]}  Ne5 {[%clk 0:00:33]} 29. Rxa7 {[%clk 0:01:45]}  Qg4 {[%clk 0:00:31]} 30. Qe8 {[%clk 0:01:43]}  Qd1+ {[%clk 0:00:13]} 31. Kg2 {[%clk 0:01:43]} 1-0


[Site "https://www.chess.com"]

[Event "Titled Tuesday Blitz August 17 2021"]
[White "TengisChess"]
[Black "Politov, Pavel Y."]
[BlackFideId "24110515"]
[WhiteElo "2470"]
[BlackElo "2090"]
[Result "1-0"]
[Round "11"]
[TimeControl "180+1"]
[Date "2021.08.17"]
[WhiteClock "0:02:17"]
[BlackClock "0:00:37"]

1. Nf3 {[%clk 0:02:59]}  Nf6 {[%clk 0:02:59]} 2. d4 {[%clk 0:03:00]}  g6 {[%clk 0:02:59]} 3. Nc3 {[%clk 0:03:01]}  d5 {[%clk 0:02:56]} 4. Bg5 {[%clk 0:03:01]}  Bg7 {[%clk 0:02:56]} 5. Qd2 {[%clk 0:03:01]}  Ne4 {[%clk 0:02:54]} 6. Qe3 {[%clk 0:03:01]}  Nxc3 {[%clk 0:02:54]} 7. bxc3 {[%clk 0:03:01]}  c5 {[%clk 0:02:51]} 8. Bh6 {[%clk 0:02:56]}  O-O {[%clk 0:02:50]} 9. Bxg7 {[%clk 0:02:56]}  Kxg7 {[%clk 0:02:50]} 10. h4 {[%clk 0:02:57]}  h5 {[%clk 0:02:45]} 11. dxc5 {[%clk 0:02:55]}  Nc6 {[%clk 0:02:42]} 12. Nd4 {[%clk 0:02:52]}  Re8 {[%clk 0:02:33]} 13. f4 {[%clk 0:02:50]}  Qa5 {[%clk 0:02:23]} 14. Nxc6 {[%clk 0:02:48]}  bxc6 {[%clk 0:02:21]} 15. Qd4+ {[%clk 0:02:49]}  f6 {[%clk 0:02:20]} 16. Qb4 {[%clk 0:02:48]}  Qc7 {[%clk 0:02:17]} 17. e3 {[%clk 0:02:48]}  e5 {[%clk 0:02:17]} 18. Kf2 {[%clk 0:02:48]}  exf4 {[%clk 0:02:13]} 19. Qxf4 {[%clk 0:02:49]}  Qe7 {[%clk 0:02:12]} 20. Bd3 {[%clk 0:02:46]}  Qxc5 {[%clk 0:02:07]} 21. Qd4 {[%clk 0:02:43]}  Qd6 {[%clk 0:02:00]} 22. Rab1 {[%clk 0:02:41]}  Re7 {[%clk 0:01:27]} 23. c4 {[%clk 0:02:34]}  Bg4 {[%clk 0:01:24]} 24. cxd5 {[%clk 0:02:34]}  cxd5 {[%clk 0:01:23]} 25. Rb5 {[%clk 0:02:33]}  Rae8 {[%clk 0:01:21]} 26. Rxd5 {[%clk 0:02:30]}  Qa3 {[%clk 0:01:11]} 27. Rd6 {[%clk 0:02:29]}  Re5 {[%clk 0:01:03]} 28. Rb1 {[%clk 0:02:29]}  R8e7 {[%clk 0:00:59]} 29. Rb8 {[%clk 0:02:19]}  Rxe3 {[%clk 0:00:54]} 30. Qxf6+ {[%clk 0:02:18]}  Kh6 {[%clk 0:00:40]} 31. Rh8+ {[%clk 0:02:18]}  Rh7 {[%clk 0:00:40]} 32. Rxh7+ {[%clk 0:02:18]}  Kxh7 {[%clk 0:00:39]} 33. Kxe3 {[%clk 0:02:18]}  Qc1+ {[%clk 0:00:37]} 34. Kf2 {[%clk 0:02:17]} 1-0


[Site "https://www.chess.com"]